fUST/lending_fUST_20260111
["ID","MTS","AMOUNT","RATE_DAILY","PERIOD"]
[401325949,1768138247155,-412.837039,0.000249,7]
[401325950,1768138247165,-155.856993,0.000249,7]
[401325951,1768138247174,-151.0,0.000249,7]
[401325952,1768138247184,-151.0,0.000249,7]
[401325953,1768138247193,-151.0,0.000249,7]
[401325954,1768138247203,-151.0,0.000249,7]
[401325955,1768138247212,-151.0,0.000249,7]
[401325956,1768138247221,-232.476622,0.000249,7]
[401325957,1768138247230,-151.0,0.000249,7]
[401325958,1768138247240,-151.0,0.000249,7]
[401325959,1768138247249,-163.313773,0.000249,7]
[401325960,1768138247258,-151.0,0.000249,7]
[401325961,1768138247268,-151.0,0.000249,7]
[401325962,1768138247276,-264.224,0.000249,7]
[401325963,1768138247284,-264.224,0.000249,7]
[401325964,1768138247294,-264.224,0.000249,7]
[401325965,1768138247303,-264.224,0.000249,7]
[401325966,1768138247312,-151.0,0.000249,7]
[401325967,1768138247321,-151.0,0.000249,7]
[401325968,1768138247330,-165.523557,0.000249,7]
[401325969,1768138247339,-151.0,0.000249,7]
[401325970,1768138247348,-165.523557,0.000249,7]
[401325971,1768138247358,-151.0,0.000249,7]
[401325972,1768138247367,-151.0,0.000249,7]
[401325973,1768138247376,-165.523557,0.000249,7]
[401325974,1768138247468,-400097.821185,0.000249,2]
[401325975,1768138247478,-151.0,0.000249,7]
[401325976,1768138247487,-165.523557,0.000249,7]
[401325977,1768138247497,-151.0,0.000249,7]
[401325978,1768138247507,-151.0,0.000249,7]
[401325979,1768138247516,-151.0,0.000249,7]
[401325980,1768138247525,-151.0,0.000249,7]
[401325981,1768138247534,-156.82101,0.000249,7]
[401325982,1768138247543,-1390.654024,0.000249,7]
[401325983,1768138247552,-1390.654024,0.000249,7]
[401325984,1768138247561,-1390.654024,0.000249,7]
[401325985,1768138247571,-1390.654024,0.000249,7]
[401325986,1768138247580,-151.0,0.000249,7]
[401325987,1768138247589,-1638.845663,0.000249,7]
[401325988,1768138247598,-1638.845663,0.000249,7]
[401325989,1768138247607,-151.0,0.000249,7]
[401325990,1768138247616,-152.567384,0.000249,7]
[401325991,1768138247625,-1638.845663,0.000249,7]
[401325992,1768138247635,-151.0,0.000249,7]
[401325993,1768138247644,-1638.845663,0.000249,7]
[401325994,1768138247653,-151.0,0.000249,7]
[401325995,1768138247662,-151.0,0.000249,7]
[401325996,1768138247671,-728.329358,0.000249,7]
[401325997,1768138247680,-728.329358,0.000249,7]
[401325998,1768138247689,-728.329358,0.000249,7]
[401325999,1768138247698,-728.329358,0.000249,7]
[401326000,1768138247709,-151.0,0.000249,2]
[401326001,1768138247720,-151.0,0.000249,7]
[401326002,1768138247729,-500.0,0.00024932,2]
[401326003,1768138247737,-329.8,0.00025,2]
[401326004,1768138247747,-2675.46555144,0.00025,2]
[401326005,1768138247756,-20757.85955183,0.00025,2]
[401326006,1768138247765,-10364.0,0.00025,2]
[401326007,1768138247774,-500.0,0.00025,2]
[401326008,1768138247783,-2074.08935166,0.00025,2]
[401326009,1768138247793,-759.6161654,0.00025,2]
[401326010,1768138247802,-500.0,0.00025069,2]
[401326011,1768138247811,-7609.48343622,0.00025128,2]
[401326012,1768138247821,-1087.80747027,0.00025153,2]
[401326013,1768138247831,-250.0,0.00025205,2]
[401326014,1768138247842,-500.0,0.00025206,2]
[401326015,1768138247852,-602.55045023,0.00025225,2]
[401326016,1768138247860,-500.0,0.00025343,2]
[401326017,1768138247868,-500.0,0.0002548,2]
[401326018,1768138247876,-329.8,0.000255,2]
[401326019,1768138247885,-1000.0,0.000255,2]
[401326020,1768138247894,-255.99235489,0.00025617,2]
[401326021,1768138247904,-176.23516734,0.00025617,2]
[401326022,1768138247913,-500.0,0.00025617,2]
[401326023,1768138247922,-500.0,0.00025617,2]
[401326024,1768138247931,-500.0,0.00025617,2]
[401326025,1768138247940,-500.0,0.00025617,2]
[401326026,1768138247949,-171.65605742,0.00025617,2]
[401326027,1768138247959,-3176.86810454,0.00025629,2]
[401326028,1768138247968,-313.77529652,0.00025726,14]
[401326029,1768138247978,-350.0,0.00025753,2]
[401326030,1768138247988,-500.0,0.00025754,2]
[401326031,1768138247998,-503.05659276,0.00025754,2]
[401326032,1768138248008,-598.52490689,0.00025754,2]
[401326033,1768138248026,-500.0,0.00025754,2]
[401326034,1768138248039,-151.0,0.00025754,7]
[401326035,1768138248049,-151.0,0.00025754,7]
[401326036,1768138248057,-151.0,0.00025754,7]
[401326037,1768138248065,-151.0,0.00025754,7]
[401326038,1768138248075,-2026.41544348,0.0002587,2]
[401326039,1768138248085,-179.07075974,0.00025891,2]
[401326040,1768138248098,-500.0,0.00025891,2]
[401326041,1768138248109,-500.0,0.00025891,2]
[401326042,1768138248119,-151.0,0.00025891,7]
[401326043,1768138248130,-151.0,0.00025891,7]
[401326044,1768138248144,-151.0,0.00025891,7]
[401326045,1768138248153,-169.882376,0.00025891,7]
[401326046,1768138248162,-151.0,0.00025891,7]
[401326047,1768138248171,-151.0,0.00025891,7]
[401326048,1768138248180,-151.0,0.00025891,7]
[401326049,1768138248190,-161.096358,0.00025891,7]
[401326050,1768138248199,-1000.0,0.00025906,10]
[401326051,1768138248208,-1000.0,0.00025906,10]
[401326052,1768138248217,-1000.0,0.00025906,10]
[401326053,1768138248226,-715.0,0.00025906,10]
[401326054,1768138248235,-526.6,0.00025939,2]
[401326055,1768138248244,-329.8,0.00026,2]
[401326056,1768138248254,-70607.87391328,0.00026,30]
[401326057,1768138248268,-500.0,0.00026028,2]
[401326058,1768138248283,-500.0,0.00026028,2]
[401326059,1768138248298,-263.97622948,0.00026165,2]
[401326060,1768138248310,-487.28484085,0.00026165,2]
[401326061,1768138248324,-500.0,0.00026165,2]
[401326062,1768138248337,-264.95729538,0.00026165,2]
[401326063,1768138248352,-151.0,0.00026165,7]
[401326064,1768138248366,-172.824008,0.00026165,7]
[401326065,1768138248382,-151.0,0.00026165,7]
[401326066,1768138248397,-151.0,0.00026165,7]
[401326067,1768138248410,-450.0,0.00026301,2]
[401326068,1768138248423,-500.0,0.00026302,2]
[401326069,1768138248436,-500.0,0.00026439,2]
[401326070,1768138248449,-329.8,0.000265,2]
[401326071,1768138248463,-500.0,0.00026576,2]
[401326072,1768138248475,-500.0,0.00026713,2]
[401326073,1768138248487,-181.17141011,0.00026725,2]
[401326074,1768138248498,-759.95006359,0.00026811,2]
[401326075,1768138248510,-3039.80025437,0.00026811,2]
[401326076,1768138248525,-6832.71102175,0.00026811,2]
[401326077,1768138248540,-550.0,0.00026849,2]
[401326078,1768138248552,-500.0,0.0002685,2]
[401326079,1768138248566,-620.9785477,0.00026987,2]
[401326080,1768138248581,-329.8,0.000271,2]
[401326081,1768138248593,-647.00089328,0.00027225,2]
[401326082,1768138248602,-175.0,0.0002737,24]
[401326083,1768138248613,-394.08412848,0.0002739,7]
[401326084,1768138248624,-702.10519323,0.00027397,5]
[401326085,1768138248639,-300.0,0.00027397,2]
[401326086,1768138248652,-300.0,0.00027397,2]
[401326087,1768138248661,-300.0,0.00027397,2]
[401326088,1768138248672,-300.0,0.00027397,2]
[401326089,1768138248684,-2140.41,0.000274,14]
[401326090,1768138248697,-1087.80747027,0.00027463,2]
[401326091,1768138248709,-526.6,0.00027519,2]
[401326092,1768138248720,-329.8,0.000276,2]
[401326093,1768138248732,-151.0,0.00027945,7]
[401326094,1768138248744,-151.0,0.00027945,7]
[401326095,1768138248755,-15330.50011171,0.00028,2]
[401326096,1768138248766,-520.4204079,0.00028,2]
[401326097,1768138248778,-5000.0,0.00028037,2]
[401326098,1768138248789,-329.8,0.000281,2]
[401326099,1768138248800,-1000.0,0.00028496,30]
[401326100,1768138248811,-1000.0,0.00028496,30]
[401326101,1768138248822,-1000.0,0.00028496,30]
[401326102,1768138248833,-329.8,0.000286,2]
[401326103,1768138248844,-155.5739919,0.00028739,5]
[401326104,1768138248855,-234.89,0.00028749,2]
[401326105,1768138248866,-429431.6619482,0.0002876,14]
[401326106,1768138248878,-1638.845663,0.0002876,7]
[401326107,1768138248889,-1638.845663,0.0002876,7]
[401326108,1768138248900,-151.0,0.0002876,7]
[401326109,1768138248911,-1638.845663,0.0002876,7]
[401326110,1768138248922,-151.0,0.0002876,7]
[401326111,1768138248933,-1638.845663,0.0002876,7]
[401326112,1768138248944,-239.620179,0.0002876,7]
[401326113,1768138248955,-151.0,0.0002876,7]
[401326114,1768138248967,-728.329358,0.0002876,7]
[401326115,1768138248978,-728.329358,0.0002876,7]
[401326116,1768138248989,-728.329358,0.0002876,7]
[401326117,1768138249000,-728.329358,0.0002876,7]
[401326118,1768138249013,-151.0,0.0002876,2]
[401326119,1768138249024,-151.0,0.0002876,7]
[401326120,1768138249037,-200.586455,0.0002889,7]
[401326121,1768138249049,-7609.48343622,0.00028987,2]
[401326122,1768138249060,-2412.5313746,0.00029,10]
[401326123,1768138249072,-156.0,0.00029014,32]
[401326124,1768138249085,-18382.93313115,0.0002902,2]
[401326125,1768138249096,-526.6,0.00029099,3]
[401326126,1768138249107,-329.8,0.000291,2]
[401326127,1768138249119,-691.45133633,0.00029225,2]
[401326128,1768138249132,-14852.23,0.000294,2]
[401326129,1768138249143,-2665.91589527,0.00029513,2]
[401326130,1768138249156,-329.8,0.000296,2]
[401326131,1768138249167,-155.57399191,0.00029628,5]
[401326132,1768138249179,-1087.80747027,0.00029773,2]
[401326133,1768138249192,-5008.97139185,0.0003,10]
[401326134,1768138249203,-89030.96900453,0.0003,30]
[401326135,1768138249215,-258.50979211,0.0003,10]
[401326136,1768138249228,-151.0,0.0003,14]
[401326137,1768138249239,-329.8,0.000301,2]
[401326138,1768138249251,-209.08,0.000301,2]
[401326139,1768138249262,-300.0,0.00030137,5]
[401326140,1768138249275,-2099.00986107,0.0003014,120]
[401326141,1768138249287,-5000.0,0.00030203,2]
[401326142,1768138249298,-299.0,0.00030314,2]
[401326143,1768138249434,-435.0,0.00030358,2]
[401326144,1768138249443,-435.0,0.00030542,7]
[401326145,1768138249453,-155.57399191,0.00030657,10]
[401326146,1768138249462,-164.0,0.00030658,41]
[401326147,1768138249471,-21586.80632037,0.00030661,2]
[401326148,1768138249481,-151.0,0.00030661,2]
[401326149,1768138249490,-151.0,0.00030661,2]
[401326150,1768138249499,-151.0,0.00030661,2]
[401326151,1768138249508,-151.0,0.00030661,2]
[401326152,1768138249517,-151.0,0.00030661,2]
[401326153,1768138249527,-151.0,0.00030661,2]
[401326154,1768138249536,-151.0,0.00030661,2]
[401326155,1768138249545,-151.0,0.00030661,2]
[401326156,1768138249553,-151.0,0.00030661,2]
[401326157,1768138249562,-151.0,0.00030661,2]
[401326158,1768138249572,-151.0,0.00030661,2]
[401326159,1768138249582,-151.0,0.00030661,2]
[401326160,1768138249592,-151.0,0.00030661,2]
[401326161,1768138249601,-151.0,0.00030661,2]
[401326162,1768138249610,-151.0,0.00030661,2]
[401326163,1768138249620,-151.0,0.00030661,2]
[401326164,1768138249629,-151.0,0.00030661,2]
[401326165,1768138249640,-151.0,0.00030661,2]
[401326166,1768138249650,-151.0,0.00030661,2]
[401326167,1768138249659,-151.0,0.00030661,2]
[401326168,1768138249668,-151.0,0.00030661,2]
[401326169,1768138249678,-151.0,0.00030661,2]
[401326170,1768138249687,-151.0,0.00030661,2]
[401326171,1768138249696,-151.0,0.00030661,2]
[401326172,1768138249706,-151.0,0.00030661,2]
[401326173,1768138249714,-151.0,0.00030661,2]
[401326174,1768138249723,-151.0,0.00030661,2]
[401326175,1768138249732,-151.0,0.00030661,2]
[401326176,1768138249741,-151.0,0.00030661,2]
[401326177,1768138249750,-151.0,0.00030661,2]
[401326178,1768138249759,-151.0,0.00030661,2]
[401326179,1768138249768,-151.0,0.00030661,2]
[401326180,1768138249777,-151.0,0.00030661,2]
[401326181,1768138249787,-151.0,0.00030661,2]
[401326182,1768138249797,-151.0,0.00030661,2]
[401326183,1768138249807,-151.0,0.00030661,2]
[401326184,1768138249817,-151.0,0.00030661,2]
[401326185,1768138249827,-151.0,0.00030661,2]
[401326186,1768138249838,-151.0,0.00030661,2]
[401326187,1768138249847,-151.0,0.00030661,2]
[401326188,1768138249856,-151.0,0.00030661,2]
[401326189,1768138249866,-156.587,0.00030661,2]
[401326190,1768138249875,-152.09143049,0.00030661,2]
[401326191,1768138249884,-363.0,0.00030677,2]
[401326192,1768138249893,-526.6,0.00030679,4]
[401326193,1768138249902,-151.0,0.000308,18]
[401326194,1768138249911,-151.0,0.000308,14]
[401326195,1768138249921,-500.0,0.00030827,7]
[401326196,1768138249930,-151.0,0.0003089,14]
[401326197,1768138249940,-3176.86810454,0.00030921,2]
[401326198,1768138249949,-556.64090381,0.00031,30]
[401326199,1768138249959,-588120.82157224,0.00031021,2]
[401326200,1768138249968,-151.0,0.00031021,31]
[401326201,1768138249978,-160.002934,0.00031021,31]
[401326202,1768138249987,-151.0,0.00031021,31]
[401326203,1768138249997,-151.0,0.00031021,31]
[401326204,1768138250007,-151.0,0.00031021,31]
[401326205,1768138250021,-151.0,0.00031021,31]
[401326206,1768138250030,-151.0,0.00031021,31]
[401326207,1768138250039,-151.0,0.00031021,31]
[401326208,1768138250048,-151.0,0.00031021,31]
[401326209,1768138250059,-151.0,0.00031021,31]
[401326210,1768138250068,-163.811911,0.00031021,31]
[401326211,1768138250077,-151.0,0.00031021,31]
[401326212,1768138250089,-151.0,0.00031021,31]
[401326213,1768138250098,-175.972983,0.00031021,31]
[401326214,1768138250108,-151.0,0.00031021,31]
[401326215,1768138250117,-151.0,0.00031021,31]
[401326216,1768138250126,-151.0,0.00031021,31]
[401326217,1768138250135,-151.0,0.00031021,31]
[401326218,1768138250144,-153.700094,0.00031021,31]
[401326219,1768138250154,-177.831998,0.00031021,7]
[401326220,1768138250163,-151.0,0.00031021,31]
[401326221,1768138250172,-151.0,0.00031021,31]
[401326222,1768138250181,-151.0,0.00031021,31]
[401326223,1768138250190,-412.837039,0.00031021,31]
[401326224,1768138250199,-412.837039,0.00031021,31]
[401326225,1768138250209,-412.837039,0.00031021,31]
[401326226,1768138250218,-412.837039,0.00031021,31]
[401326227,1768138250227,-151.0,0.00031021,31]
[401326228,1768138250236,-157.400999,0.00031021,31]
[401326229,1768138250246,-151.0,0.00031021,31]
[401326230,1768138250256,-151.0,0.00031021,31]
[401326231,1768138250265,-151.0,0.00031021,31]
[401326232,1768138250275,-151.0,0.00031021,31]
[401326233,1768138250284,-151.0,0.00031021,31]
[401326234,1768138250293,-151.0,0.00031021,31]
[401326235,1768138250302,-151.0,0.00031021,31]
[401326236,1768138250311,-264.224,0.00031021,31]
[401326237,1768138250320,-264.224,0.00031021,31]
[401326238,1768138250329,-264.224,0.00031021,31]
[401326239,1768138250339,-264.224,0.00031021,31]
[401326240,1768138250348,-151.0,0.00031021,31]
[401326241,1768138250357,-165.523557,0.00031021,31]
[401326242,1768138250367,-151.0,0.00031021,31]
[401326243,1768138250376,-165.523557,0.00031021,31]
[401326244,1768138250385,-151.0,0.00031021,31]
[401326245,1768138250395,-151.0,0.00031021,31]
[401326246,1768138250404,-165.523557,0.00031021,31]
[401326247,1768138250414,-151.0,0.00031021,31]
[401326248,1768138250423,-165.523557,0.00031021,31]
[401326249,1768138250432,-151.0,0.00031021,31]
[401326250,1768138250442,-151.0,0.00031021,31]
[401326251,1768138250451,-151.0,0.00031021,31]
[401326252,1768138250460,-151.0,0.00031021,31]
[401326253,1768138250469,-1390.654024,0.00031021,31]
[401326254,1768138250478,-1390.654024,0.00031021,31]
[401326255,1768138250488,-1390.654024,0.00031021,31]
[401326256,1768138250497,-1390.654024,0.00031021,31]
[401326257,1768138250506,-151.0,0.00031021,31]
[401326258,1768138250515,-1638.845663,0.00031021,31]
[401326259,1768138250525,-1638.845663,0.00031021,31]
[401326260,1768138250535,-151.0,0.00031021,7]
[401326261,1768138250545,-1638.845663,0.00031021,31]
[401326262,1768138250554,-151.0,0.00031021,7]
[401326263,1768138250563,-1638.845663,0.00031021,31]
[401326264,1768138250572,-151.0,0.00031021,31]
[401326265,1768138250581,-728.329358,0.00031021,31]
[401326266,1768138250590,-728.329358,0.00031021,31]
[401326267,1768138250599,-728.329358,0.00031021,31]
[401326268,1768138250608,-728.329358,0.00031021,31]
[401326269,1768138250617,-152.162088,0.00031021,2]
[401326270,1768138250626,-221.765393,0.00031021,31]
[401326271,1768138250635,-426.0,0.00031025,2]
[401326272,1768138250644,-435.0,0.00031064,2]
[401326273,1768138250653,-435.0,0.00031103,2]
[401326274,1768138250662,-3519.71312671,0.0003115,7]
[401326275,1768138250671,-851.51301519,0.0003115,7]
[401326276,1768138250680,-692.47082333,0.00031158,7]
[401326277,1768138250691,-735.90177938,0.00031225,2]
[401326278,1768138250700,-435.0,0.00031479,7]
[401326279,1768138250710,-3406.05206075,0.00031503,7]
[401326280,1768138250719,-435.0,0.00031519,7]
[401326281,1768138250729,-435.0,0.00031542,2]
[401326282,1768138250738,-155.5739919,0.00031605,10]
[401326283,1768138250747,-536.72987461,0.00031626,7]
[401326284,1768138250757,-435.0,0.00031759,7]
[401326285,1768138250766,-151.0,0.0003178,14]
[401326286,1768138250775,-435.0,0.00031856,2]
[401326287,1768138250785,-2600.19116857,0.00031874,2]
[401326288,1768138250794,-2140.41,0.000319,14]
[401326289,1768138250803,-435.0,0.0003194,2]
[401326290,1768138250812,-1443.0,0.00031979,7]
[401326291,1768138250823,-162.09527137,0.00032,120]
[401326292,1768138250833,-435.0,0.00032009,2]
[401326293,1768138250842,-628.0,0.00032012,2]
[401326294,1768138250851,-1366.0,0.00032012,2]
[401326295,1768138250861,-2156.89,0.00032012,2]
[401326296,1768138250870,-417.0,0.00032012,2]
[401326297,1768138250879,-198.35,0.00032012,2]
[401326298,1768138250889,-369.0,0.00032063,7]
[401326299,1768138250898,-1087.80747027,0.00032084,2]
[401326300,1768138250907,-2600.19116857,0.00032119,2]
[401326301,1768138250917,-1113.51701986,0.00032194,2]
[401326302,1768138250927,-2505.41329468,0.00032194,2]
[401326303,1768138250936,-413.86355041,0.00032194,2]
[401326304,1768138250945,-374.56376353,0.00032194,2]
[401326305,1768138250955,-1498.2550541,0.00032194,2]
[401326306,1768138250965,-3371.07387174,0.00032194,2]
[401326307,1768138250974,-5993.02021642,0.00032194,2]
[401326308,1768138250984,-2136.96868408,0.00032194,2]
[401326309,1768138250993,-278.37925496,0.00032194,2]
[401326310,1768138251002,-526.6,0.00032259,5]
[401326311,1768138251013,-4454.06807944,0.00032264,2]
[401326312,1768138251023,-6959.48137412,0.00032264,2]
[401326313,1768138251033,-435.0,0.00032265,2]
[401326314,1768138251043,-377.0831682,0.00032274,30]
[401326315,1768138251052,-250.0,0.00032297,5]
[401326316,1768138251061,-250.0,0.00032297,5]
[401326317,1768138251070,-151.0,0.00032297,5]
[401326318,1768138251081,-445.202766,0.00032297,5]
[401326319,1768138251090,-2150.738,0.00032297,5]
[401326320,1768138251099,-461.67526834,0.00032297,5]
[401326321,1768138251108,-2230.315306,0.00032297,5]
[401326322,1768138251119,-478.75725327,0.00032297,5]
[401326323,1768138251128,-2312.83697232,0.00032297,5]
[401326324,1768138251138,-496.47127164,0.00032297,5]
[401326325,1768138251147,-2398.4119403,0.00032297,5]
[401326326,1768138251158,-514.84070869,0.00032297,5]
[401326327,1768138251167,-151.0,0.00032297,5]
[401326328,1768138251177,-533.88981491,0.00032297,5]
[401326329,1768138251188,-2487.15318209,0.00032297,5]
[401326330,1768138251198,-151.0,0.00032297,5]
[401326331,1768138251207,-2579.17784983,0.00032297,5]
[401326332,1768138251216,-553.64373807,0.00032297,5]
[401326333,1768138251227,-250.15738416,0.00032297,5]
[401326334,1768138251236,-256.83787609,0.00032297,5]
[401326335,1768138251246,-574.12855637,0.00032297,5]
[401326336,1768138251256,-595.37131296,0.00032297,5]
[401326337,1768138251266,-617.40005154,0.00032297,5]
[401326338,1768138251275,-760.8076711,0.00032297,5]
[401326339,1768138251285,-1095.40809829,0.00032297,5]
[401326340,1768138251295,-151.0,0.00032297,5]
[401326341,1768138251305,-151.0,0.00032297,5]
[401326342,1768138251315,-250.0,0.00032297,5]
[401326343,1768138251325,-271.40103972,0.00032297,5]
[401326344,1768138251335,-151.0,0.00032297,5]
[401326345,1768138251346,-151.0,0.00032297,5]
[401326346,1768138251355,-151.0,0.00032297,5]
[401326347,1768138251364,-151.0,0.00032297,5]
[401326348,1768138251373,-296.59935167,0.00032297,5]
[401326349,1768138251383,-151.0,0.00032297,5]
[401326350,1768138251392,-151.0,0.00032297,5]
[401326351,1768138251401,-250.0,0.00032297,5]
[401326352,1768138251411,-151.0,0.00032297,5]
[401326353,1768138251506,-151.0,0.00032297,5]
[401326354,1768138251516,-151.0,0.00032297,5]
[401326355,1768138251525,-151.0,0.00032297,5]
[401326356,1768138251535,-153.90472729,0.00032297,5]
[401326357,1768138251545,-151.0,0.00032297,5]
[401326358,1768138251554,-151.0,0.00032297,5]
[401326359,1768138251564,-151.0,0.00032297,5]
[401326360,1768138251573,-151.0,0.00032297,5]
[401326361,1768138251582,-151.0,0.00032297,5]
[401326362,1768138251592,-151.0,0.00032297,5]
[401326363,1768138251601,-151.0,0.00032297,5]
[401326364,1768138251613,-250.0,0.00032297,5]
[401326365,1768138251622,-151.0,0.00032297,5]
[401326366,1768138251631,-154.07167593,0.00032297,5]
[401326367,1768138251640,-1112.0,0.00032299,2]
[401326368,1768138251649,-5000.0,0.0003237,2]
[401326369,1768138251659,-2171.0,0.000324,120]
[401326370,1768138251668,-204.4119582,0.00032411,30]
[401326371,1768138251677,-263.2879419,0.00032411,30]
[401326372,1768138251687,-617.9975553,0.00032411,30]
[401326373,1768138251697,-153.0,0.00032411,30]
[401326374,1768138251706,-153.0,0.00032411,30]
[401326375,1768138251715,-1085.0,0.00032463,2]
[401326376,1768138251726,-10021.65317873,0.00032475,2]
[401326377,1768138251735,-2769.8832933,0.00032477,7]
[401326378,1768138251745,-2600.19116857,0.00032505,2]
[401326379,1768138251754,-155.57399191,0.00032583,10]
[401326380,1768138251763,-10455.7051055,0.00032634,2]
[401326381,1768138251772,-26471.9898271,0.00032634,2]
[401326382,1768138251785,-781.4959678,0.00032634,2]
[401326383,1768138251794,-2344.4879037,0.00032634,2]
[401326384,1768138251803,-4895.1254896,0.00032634,2]
[401326385,1768138251812,-151.61039102,0.0003267,14]
[401326386,1768138251821,-120570.03500179,0.0003267,2]
[401326387,1768138252086,-2411.0,0.00011769,2]
[401326388,1768138252095,-272.0174,0.00011906,2]
[401326389,1768138252106,-2138.9826,0.00011906,2]
[401326390,1768138252116,-2411.0,0.00012043,2]
[401326391,1768138252125,-2411.0,0.0001218,2]
[401326392,1768138252134,-151.0,0.000249,7]
[401326393,1768138252143,-289.520945,0.000249,7]
[401326394,1768138252153,-151.0,0.0002876,7]
[401326395,1768138252162,-151.0,0.00031021,31]
[401326396,1768138252172,-14834.20614324,0.0003267,2]
[401326397,1768138252184,-21963.57145321,0.0003267,2]
[401326398,1768138252195,-914.5980978,0.0003267,2]
[401326399,1768138679770,219.18,5.974e-05,2]
[401326400,1768138680030,219.18,5.974e-05,2]
[401326401,1768138680298,219.17,5.974e-05,2]
[401326402,1768138684889,-2049.855484,8.592e-05,2]
[401326403,1768138805109,274.62,5e-05,2]
[401326404,1768138805770,274.62,5.5e-05,2]
[401326405,1768138806360,274.62,6e-05,2]
[401326406,1768138806975,274.62,6.5e-05,2]
[401326407,1768138807645,274.62,7.1e-05,2]
[401326408,1768138808190,274.62,7.6e-05,2]
[401326409,1768138808800,274.62,8.1e-05,2]
[401326410,1768138832734,-274.62,8.6e-05,2]
[401326411,1768138835599,274.5,5e-05,2]
[401326412,1768138927695,2000.0,0.00030136,120]
[401326413,1768138965326,500.0,0.00030136,120]
[401326415,1768139149099,192.9533729,0.00030136,120]
[401326422,1768139432362,-274.62,9.1e-05,2]
[401326423,1768139432372,-1011.1716892,9.1e-05,2]
[401326424,1768139432382,-263.2583108,9.1e-05,2]
[401326459,1768139438511,-283.7416892,9.1e-05,2]
[401326460,1768139438521,-246.42996295,9.152e-05,2]
[401326461,1768139438531,-245.983,9.308e-05,2]
[401326462,1768139438541,-300.0,9.397e-05,2]
[401326463,1768139438553,-300.0,9.397e-05,2]
[401326464,1768139438563,-300.0,9.397e-05,2]
[401326465,1768139438572,-1200.0,9.397e-05,2]
[401326466,1768139438582,-240.65630942,9.397e-05,2]
[401326467,1768139438591,-500.0,9.397e-05,2]
[401326468,1768139438600,-500.0,9.397e-05,2]
[401326469,1768139438610,-500.0,9.397e-05,2]
[401326470,1768139438622,-500.0,9.397e-05,2]
[401326471,1768139438633,-500.0,9.397e-05,2]
[401326472,1768139438643,-500.0,9.397e-05,2]
[401326473,1768139438653,-500.0,9.397e-05,2]
[401326474,1768139438663,-500.0,9.397e-05,2]
[401326475,1768139438673,-500.0,9.397e-05,2]
[401326476,1768139438683,-500.0,9.397e-05,2]
[401326477,1768139438692,-500.0,9.397e-05,2]
[401326478,1768139438704,-500.0,9.397e-05,2]
[401326479,1768139438713,-527.97013448,9.397e-05,2]
[401326480,1768139438723,-500.0,9.397e-05,2]
[401326481,1768139438732,-500.0,9.397e-05,2]
[401326482,1768139438742,-500.0,9.397e-05,2]
[401326483,1768139438751,-636.9296582,9.397e-05,2]
[401326484,1768139438761,-524.62617307,9.397e-05,2]
[401326485,1768139438770,-500.0,9.397e-05,2]
[401326486,1768139438779,-500.0,9.397e-05,2]
[401326487,1768139438789,-500.0,9.397e-05,2]
[401326488,1768139438798,-1000000.0,9.398e-05,2]
[401326489,1768139438808,-300.0,9.494e-05,2]